[Event "Titled Tuesday Blitz March 21 Early 2023"]
[White "Van Osch, Mees"]
[Black "HSH1987"]
[WhiteFideId "1035967"]
[WhiteElo "2324"]
[BlackElo "2711"]
[Result "0-1"]
[Round "01"]
[TimeControl "180+2"]
[Date "2023.03.21"]
[WhiteClock "0:00:18"]
[BlackClock "0:00:05"]

1. e4 {[%clk 0:02:54]}  c6 {[%clk 0:02:57]} 2. Nc3 {[%clk 0:02:50]}  d5 {[%clk 0:02:57]} 3. Nf3 {[%clk 0:02:50]}  Bg4 {[%clk 0:02:56]} 4. h3 {[%clk 0:02:50]}  Bxf3 {[%clk 0:02:56]} 5. Qxf3 {[%clk 0:02:50]}  e6 {[%clk 0:02:56]} 6. g3 {[%clk 0:02:47]}  Nf6 {[%clk 0:02:55]} 7. Bg2 {[%clk 0:02:47]}  g6 {[%clk 0:02:51]} 8. O-O {[%clk 0:02:44]}  Bg7 {[%clk 0:02:52]} 9. Rd1 {[%clk 0:02:44]}  O-O {[%clk 0:02:46]} 10. d4 {[%clk 0:02:43]}  dxe4 {[%clk 0:02:45]} 11. Nxe4 {[%clk 0:02:44]}  Nxe4 {[%clk 0:02:46]} 12. Qxe4 {[%clk 0:02:43]}  Nd7 {[%clk 0:02:47]} 13. c3 {[%clk 0:02:41]}  a5 {[%clk 0:02:45]} 14. a4 {[%clk 0:02:41]}  Re8 {[%clk 0:02:43]} 15. Bf4 {[%clk 0:02:39]}  Nb6 {[%clk 0:02:42]} 16. h4 {[%clk 0:02:31]}  h5 {[%clk 0:02:40]} 17. Rd2 {[%clk 0:02:25]}  Nc4 {[%clk 0:02:39]} 18. Re2 {[%clk 0:02:25]}  Qb6 {[%clk 0:02:35]} 19. Rb1 {[%clk 0:02:18]}  Qb3 {[%clk 0:02:31]} 20. Ra1 {[%clk 0:01:58]}  Rad8 {[%clk 0:02:28]} 21. Qc2 {[%clk 0:01:53]}  Qxc2 {[%clk 0:02:24]} 22. Rxc2 {[%clk 0:01:54]}  e5 {[%clk 0:02:23]} 23. dxe5 {[%clk 0:01:54]}  Bxe5 {[%clk 0:02:22]} 24. Bg5 {[%clk 0:01:51]}  f6 {[%clk 0:02:16]} 25. Bh6 {[%clk 0:00:55]}  Kh7 {[%clk 0:02:15]} 26. Bf1 {[%clk 0:00:37]}  Nxb2 {[%clk 0:01:36]} 27. Be3 {[%clk 0:00:37]}  Nd3 {[%clk 0:01:10]} 28. Bb6 {[%clk 0:00:36]}  Rd5 {[%clk 0:01:01]} 29. Rd1 {[%clk 0:00:27]}  Nb4 {[%clk 0:00:57]} 30. Rxd5 {[%clk 0:00:24]}  Nxc2 {[%clk 0:00:57]} 31. Rd7+ {[%clk 0:00:21]}  Kh8 {[%clk 0:00:57]} 32. Bxa5 {[%clk 0:00:19]}  Ra8 {[%clk 0:00:49]} 33. Bb4 {[%clk 0:00:13]}  Nxb4 {[%clk 0:00:48]} 34. cxb4 {[%clk 0:00:14]}  b6 {[%clk 0:00:47]} 35. a5 {[%clk 0:00:10]}  bxa5 {[%clk 0:00:47]} 36. bxa5 {[%clk 0:00:10]}  Rxa5 {[%clk 0:00:47]} 37. Rd8+ {[%clk 0:00:08]}  Kg7 {[%clk 0:00:47]} 38. Rc8 {[%clk 0:00:09]}  Rc5 {[%clk 0:00:42]} 39. Bg2 {[%clk 0:00:09]}  Rc1+ {[%clk 0:00:42]} 40. Kh2 {[%clk 0:00:10]}  c5 {[%clk 0:00:43]} 41. Bd5 {[%clk 0:00:09]}  Rc2 {[%clk 0:00:41]} 42. Rg8+ {[%clk 0:00:08]}  Kh7 {[%clk 0:00:41]} 43. Kg2 {[%clk 0:00:08]}  Bd4 {[%clk 0:00:41]} 44. Rc8 {[%clk 0:00:07]}  Rxf2+ {[%clk 0:00:40]} 45. Kh3 {[%clk 0:00:08]}  Rf5 {[%clk 0:00:37]} 46. Rc7+ {[%clk 0:00:08]}  Kh8 {[%clk 0:00:35]} 47. Be4 {[%clk 0:00:08]}  Re5 {[%clk 0:00:16]} 48. Bxg6 {[%clk 0:00:08]}  Bf2 {[%clk 0:00:15]} 49. Rh7+ {[%clk 0:00:08]}  Kg8 {[%clk 0:00:15]} 50. Rxh5 {[%clk 0:00:07]}  Re3 {[%clk 0:00:15]} 51. Kg2 {[%clk 0:00:08]}  Bxg3 {[%clk 0:00:14]} 52. Rxc5 {[%clk 0:00:08]}  Bxh4 {[%clk 0:00:14]} 53. Rc7 {[%clk 0:00:07]}  Rg3+ {[%clk 0:00:13]} 54. Kh2 {[%clk 0:00:06]}  Rxg6 {[%clk 0:00:14]} 55. Kh3 {[%clk 0:00:06]}  Bf2 {[%clk 0:00:13]} 56. Rc8+ {[%clk 0:00:06]}  Kg7 {[%clk 0:00:10]} 57. Rc2 {[%clk 0:00:07]}  Bd4 {[%clk 0:00:10]} 58. Rd2 {[%clk 0:00:07]}  Be5 {[%clk 0:00:10]} 59. Rd3 {[%clk 0:00:07]}  Kh6 {[%clk 0:00:10]} 60. Kh4 {[%clk 0:00:08]}  Rg1 {[%clk 0:00:09]} 61. Rd8 {[%clk 0:00:08]}  Kg7 {[%clk 0:00:08]} 62. Rd7+ {[%clk 0:00:08]}  Kg6 {[%clk 0:00:08]} 63. Rd8 {[%clk 0:00:08]}  Rh1+ {[%clk 0:00:07]} 64. Kg4 {[%clk 0:00:08]}  f5+ {[%clk 0:00:08]} 65. Kf3 {[%clk 0:00:09]}  Rh3+ {[%clk 0:00:07]} 66. Kg2 {[%clk 0:00:09]}  Rg3+ {[%clk 0:00:07]} 67. Kf2 {[%clk 0:00:10]}  Ra3 {[%clk 0:00:08]} 68. Rg8+ {[%clk 0:00:09]}  Kf6 {[%clk 0:00:04]} 69. Rf8+ {[%clk 0:00:09]}  Kg5 {[%clk 0:00:05]} 70. Rg8+ {[%clk 0:00:10]}  Kf4 {[%clk 0:00:05]} 71. Rc8 {[%clk 0:00:10]}  Ra2+ {[%clk 0:00:05]} 72. Ke1 {[%clk 0:00:11]}  Ke4 {[%clk 0:00:04]} 73. Rc4+ {[%clk 0:00:11]}  Bd4 {[%clk 0:00:05]} 74. Rc8 {[%clk 0:00:12]}  f4 {[%clk 0:00:05]} 75. Ra8 {[%clk 0:00:11]}  Rxa8 {[%clk 0:00:02]} 76. Ke2 {[%clk 0:00:12]}  Ra7 {[%clk 0:00:02]} 77. Kd1 {[%clk 0:00:13]}  Ra6 {[%clk 0:00:03]} 78. Kc2 {[%clk 0:00:13]}  Ra5 {[%clk 0:00:03]} 79. Kb3 {[%clk 0:00:14]}  f3 {[%clk 0:00:04]} 80. Kc4 {[%clk 0:00:15]}  Rf5 {[%clk 0:00:05]} 81. Kb4 {[%clk 0:00:16]}  f2 {[%clk 0:00:05]} 82. Kc4 {[%clk 0:00:17]}  f1=Q+ {[%clk 0:00:06]} 83. Kb3 {[%clk 0:00:17]}  Qb1+ {[%clk 0:00:05]} 84. Kc4 {[%clk 0:00:18]}  Rc5# {[%clk 0:00:05]} 0-1


[Site "https://www.chess.com"]

[Event "Titled Tuesday Blitz March 21 Early 2023"]
[White "Kowalczyk, Pawel"]
[Black "Korpics, Zsolt"]
[WhiteFideId "1130641"]
[BlackFideId "705241"]
[WhiteElo "2324"]
[BlackElo "2323"]
[Result "1-0"]
[Round "01"]
[TimeControl "180+2"]
[Date "2023.03.21"]
[WhiteClock "0:01:34"]
[BlackClock "0:00:49"]

1. e4 {[%clk 0:03:00]}  c5 {[%clk 0:02:58]} 2. Ne2 {[%clk 0:03:00]}  e6 {[%clk 0:02:56]} 3. g3 {[%clk 0:02:57]}  g6 {[%clk 0:02:53]} 4. Bg2 {[%clk 0:02:56]}  Bg7 {[%clk 0:02:54]} 5. O-O {[%clk 0:02:55]}  Ne7 {[%clk 0:02:54]} 6. c3 {[%clk 0:02:54]}  d5 {[%clk 0:02:27]} 7. exd5 {[%clk 0:02:54]}  Nxd5 {[%clk 0:02:27]} 8. d4 {[%clk 0:02:52]}  cxd4 {[%clk 0:02:27]} 9. Nxd4 {[%clk 0:02:52]}  O-O {[%clk 0:02:27]} 10. Na3 {[%clk 0:02:47]}  Bd7 {[%clk 0:02:23]} 11. Nc4 {[%clk 0:02:40]}  Nc6 {[%clk 0:02:22]} 12. Nb5 {[%clk 0:02:37]}  Nc7 {[%clk 0:01:35]} 13. Nbd6 {[%clk 0:02:33]}  Rb8 {[%clk 0:01:36]} 14. Bf4 {[%clk 0:02:31]}  b5 {[%clk 0:01:35]} 15. Na3 {[%clk 0:02:17]}  e5 {[%clk 0:01:35]} 16. Be3 {[%clk 0:02:16]}  a5 {[%clk 0:01:32]} 17. Qe2 {[%clk 0:02:02]}  b4 {[%clk 0:01:22]} 18. Nac4 {[%clk 0:01:59]}  Nb5 {[%clk 0:01:17]} 19. Nxb5 {[%clk 0:01:55]}  Rxb5 {[%clk 0:01:18]} 20. a4 {[%clk 0:01:55]}  Rb8 {[%clk 0:01:11]} 21. Rfd1 {[%clk 0:01:54]}  Qe7 {[%clk 0:01:06]} 22. Nb6 {[%clk 0:01:43]}  Be8 {[%clk 0:00:59]} 23. Nd5 {[%clk 0:01:41]}  Qe6 {[%clk 0:00:56]} 24. Bc5 {[%clk 0:01:40]}  Kh8 {[%clk 0:00:49]} 25. Bxf8 {[%clk 0:01:40]}  Bxf8 {[%clk 0:00:50]} 26. Nc7 {[%clk 0:01:38]}  Qe7 {[%clk 0:00:48]} 27. Nxe8 {[%clk 0:01:37]}  Qxe8 {[%clk 0:00:48]} 28. Bxc6 {[%clk 0:01:37]}  Qxc6 {[%clk 0:00:49]} 29. Qxe5+ {[%clk 0:01:37]}  Kg8 {[%clk 0:00:47]} 30. Qxb8 {[%clk 0:01:37]}  bxc3 {[%clk 0:00:48]} 31. Rd8 {[%clk 0:01:35]}  c2 {[%clk 0:00:48]} 32. Rxf8+ {[%clk 0:01:35]}  Kg7 {[%clk 0:00:49]} 33. Rg8+ {[%clk 0:01:35]}  Kh6 {[%clk 0:00:49]} 34. Qf4+ {[%clk 0:01:34]}  Kh5 {[%clk 0:00:49]} 35. Qh4# {[%clk 0:01:34]} 1-0


[Site "https://www.chess.com"]

[Event "Titled Tuesday Blitz March 21 Early 2023"]
[White "Bronstein, Or"]
[Black "Kraus, Tomas"]
[WhiteFideId "2815770"]
[BlackFideId "331708"]
[WhiteElo "2356"]
[BlackElo "2389"]
[Result "1-0"]
[Round "01"]
[TimeControl "180+2"]
[Date "2023.03.21"]
[WhiteClock "0:01:24"]
[BlackClock "0:00:16"]

1. e4 {[%clk 0:02:59]}  e6 {[%clk 0:02:58]} 2. d3 {[%clk 0:02:47]}  d5 {[%clk 0:02:59]} 3. Nd2 {[%clk 0:02:48]}  Nf6 {[%clk 0:02:56]} 4. Ngf3 {[%clk 0:02:46]}  c5 {[%clk 0:02:50]} 5. g3 {[%clk 0:02:44]}  Nc6 {[%clk 0:02:50]} 6. Bg2 {[%clk 0:02:44]}  Be7 {[%clk 0:02:50]} 7. O-O {[%clk 0:02:42]}  b5 {[%clk 0:02:46]} 8. Re1 {[%clk 0:02:42]}  O-O {[%clk 0:02:35]} 9. a4 {[%clk 0:02:30]}  b4 {[%clk 0:02:26]} 10. exd5 {[%clk 0:02:27]}  exd5 {[%clk 0:02:21]} 11. Nb3 {[%clk 0:02:22]}  h6 {[%clk 0:02:08]} 12. Bf4 {[%clk 0:02:21]}  Be6 {[%clk 0:02:02]} 13. h3 {[%clk 0:02:10]}  Rc8 {[%clk 0:01:59]} 14. g4 {[%clk 0:02:08]}  Bd6 {[%clk 0:01:45]} 15. Qd2 {[%clk 0:02:03]}  Bxf4 {[%clk 0:00:58]} 16. Qxf4 {[%clk 0:02:02]}  c4 {[%clk 0:00:56]} 17. Nbd4 {[%clk 0:01:58]}  Nxd4 {[%clk 0:00:55]} 18. Nxd4 {[%clk 0:01:57]}  cxd3 {[%clk 0:00:51]} 19. cxd3 {[%clk 0:01:55]}  Re8 {[%clk 0:00:45]} 20. Nb5 {[%clk 0:01:45]}  Rc2 {[%clk 0:00:26]} 21. Rac1 {[%clk 0:01:42]}  b3 {[%clk 0:00:20]} 22. Rxc2 {[%clk 0:01:33]}  bxc2 {[%clk 0:00:21]} 23. Rc1 {[%clk 0:01:33]}  Qa5 {[%clk 0:00:16]} 24. Rxc2 {[%clk 0:01:25]}  Qxa4 {[%clk 0:00:16]} 25. Qxa4 {[%clk 0:01:24]} 1-0


[Site "https://www.chess.com"]

[Event "Titled Tuesday Blitz March 21 Early 2023"]
[White "Friedel, Tom"]
[Black "Korchmar, Vasiliy"]
[WhiteFideId "2002108"]
[BlackFideId "24131750"]
[WhiteElo "2314"]
[BlackElo "2370"]
[Result "0-1"]
[Round "01"]
[TimeControl "180+2"]
[Date "2023.03.21"]
[WhiteClock "0:00:06"]
[BlackClock "0:00:51"]

1. e4 {[%clk 0:02:59]}  c5 {[%clk 0:02:39]} 2. Nf3 {[%clk 0:02:59]}  d6 {[%clk 0:02:39]} 3. c3 {[%clk 0:02:59]}  Nf6 {[%clk 0:02:37]} 4. Bd3 {[%clk 0:02:59]}  Nc6 {[%clk 0:02:36]} 5. Bc2 {[%clk 0:02:59]}  Bg4 {[%clk 0:02:31]} 6. d3 {[%clk 0:02:58]}  e6 {[%clk 0:02:27]} 7. Nbd2 {[%clk 0:02:57]}  Be7 {[%clk 0:02:27]} 8. O-O {[%clk 0:02:58]}  O-O {[%clk 0:02:28]} 9. h3 {[%clk 0:02:58]}  Bh5 {[%clk 0:02:28]} 10. Re1 {[%clk 0:02:58]}  Rb8 {[%clk 0:02:27]} 11. Nf1 {[%clk 0:02:59]}  h6 {[%clk 0:02:23]} 12. Ng3 {[%clk 0:02:55]}  Bg6 {[%clk 0:02:24]} 13. Bd2 {[%clk 0:02:51]}  b5 {[%clk 0:02:23]} 14. Qe2 {[%clk 0:02:48]}  b4 {[%clk 0:02:23]} 15. Ba4 {[%clk 0:02:33]}  bxc3 {[%clk 0:02:17]} 16. Bxc3 {[%clk 0:02:19]}  Qb6 {[%clk 0:02:13]} 17. Rac1 {[%clk 0:02:00]}  Nd7 {[%clk 0:01:58]} 18. Nd2 {[%clk 0:01:51]}  Bf6 {[%clk 0:01:53]} 19. Nc4 {[%clk 0:01:48]}  Qc7 {[%clk 0:01:53]} 20. Bxf6 {[%clk 0:01:36]}  Nxf6 {[%clk 0:01:53]} 21. Bxc6 {[%clk 0:01:29]}  Qxc6 {[%clk 0:01:54]} 22. e5 {[%clk 0:01:30]}  Nd5 {[%clk 0:01:55]} 23. Qf3 {[%clk 0:00:55]}  dxe5 {[%clk 0:01:55]} 24. Nxe5 {[%clk 0:00:53]}  Qd6 {[%clk 0:01:48]} 25. b3 {[%clk 0:00:42]}  Bh7 {[%clk 0:01:42]} 26. Nc4 {[%clk 0:00:37]}  Qa6 {[%clk 0:01:37]} 27. Ne4 {[%clk 0:00:21]}  Bxe4 {[%clk 0:01:17]} 28. dxe4 {[%clk 0:00:21]}  Nb4 {[%clk 0:01:17]} 29. a4 {[%clk 0:00:19]}  Nc6 {[%clk 0:01:15]} 30. Qg3 {[%clk 0:00:14]}  Nd4 {[%clk 0:01:13]} 31. Rc3 {[%clk 0:00:14]}  Nxb3 {[%clk 0:01:07]} 32. Rxb3 {[%clk 0:00:08]}  Rb4 {[%clk 0:01:08]} 33. Rxb4 {[%clk 0:00:07]}  cxb4 {[%clk 0:01:09]} 34. Ne5 {[%clk 0:00:05]}  Qxa4 {[%clk 0:01:07]} 35. Qe3 {[%clk 0:00:03]}  a5 {[%clk 0:01:01]} 36. Rb1 {[%clk 0:00:04]}  Qc2 {[%clk 0:01:00]} 37. Qd3 {[%clk 0:00:03]}  Qa2 {[%clk 0:00:48]} 38. Nc4 {[%clk 0:00:03]}  Rc8 {[%clk 0:00:49]} 39. Qb3 {[%clk 0:00:03]}  Qxb3 {[%clk 0:00:49]} 40. Rxb3 {[%clk 0:00:04]}  Rxc4 {[%clk 0:00:49]} 41. f3 {[%clk 0:00:04]}  Kf8 {[%clk 0:00:49]} 42. Rb1 {[%clk 0:00:04]}  Ke7 {[%clk 0:00:49]} 43. Rb2 {[%clk 0:00:04]}  Kd6 {[%clk 0:00:50]} 44. Kf2 {[%clk 0:00:05]}  Kc5 {[%clk 0:00:50]} 45. Ke3 {[%clk 0:00:06]}  a4 {[%clk 0:00:51]} 46. Kd3 {[%clk 0:00:06]}  Rc3+ {[%clk 0:00:50]} 47. Kd2 {[%clk 0:00:06]}  Kc4 {[%clk 0:00:51]} 0-1


[Site "https://www.chess.com"]

[Event "Titled Tuesday Blitz March 21 Early 2023"]
[White "Matinian, Nikita"]
[Black "Botez, Alexandra"]
[WhiteFideId "24129100"]
[BlackFideId "2603365"]
[WhiteElo "2422"]
[BlackElo "2059"]
[Result "1-0"]
[Round "01"]
[TimeControl "180+2"]
[Date "2023.03.21"]
[WhiteClock "0:02:09"]
[BlackClock "0:01:05"]

1. e4 {[%clk 0:02:58]}  c5 {[%clk 0:02:55]} 2. Nf3 {[%clk 0:02:58]}  Nc6 {[%clk 0:02:55]} 3. Bb5 {[%clk 0:02:58]}  g6 {[%clk 0:02:53]} 4. Bxc6 {[%clk 0:02:55]}  bxc6 {[%clk 0:02:54]} 5. O-O {[%clk 0:02:56]}  Bg7 {[%clk 0:02:54]} 6. Re1 {[%clk 0:02:56]}  d6 {[%clk 0:02:53]} 7. c3 {[%clk 0:02:56]}  e5 {[%clk 0:02:52]} 8. d4 {[%clk 0:02:53]}  cxd4 {[%clk 0:02:51]} 9. cxd4 {[%clk 0:02:54]}  Ne7 {[%clk 0:02:50]} 10. Nc3 {[%clk 0:02:52]}  O-O {[%clk 0:02:49]} 11. Be3 {[%clk 0:02:45]}  Bg4 {[%clk 0:02:32]} 12. dxe5 {[%clk 0:02:39]}  Bxe5 {[%clk 0:02:23]} 13. h3 {[%clk 0:02:35]}  Bxf3 {[%clk 0:02:22]} 14. Qxf3 {[%clk 0:02:36]}  Qc7 {[%clk 0:02:14]} 15. Rac1 {[%clk 0:02:34]}  Rab8 {[%clk 0:02:10]} 16. b3 {[%clk 0:02:34]}  f5 {[%clk 0:02:06]} 17. Bh6 {[%clk 0:02:30]}  Rf7 {[%clk 0:01:58]} 18. Nd5 {[%clk 0:02:21]}  Nxd5 {[%clk 0:01:57]} 19. exd5 {[%clk 0:02:21]}  c5 {[%clk 0:01:56]} 20. Bf4 {[%clk 0:02:21]}  Bg7 {[%clk 0:01:40]} 21. Re6 {[%clk 0:02:20]}  Rd8 {[%clk 0:01:39]} 22. Rce1 {[%clk 0:02:14]}  Rfd7 {[%clk 0:01:36]} 23. h4 {[%clk 0:02:14]}  Kf7 {[%clk 0:01:23]} 24. h5 {[%clk 0:02:12]}  Rh8 {[%clk 0:01:13]} 25. h6 {[%clk 0:02:11]}  Bf6 {[%clk 0:01:10]} 26. Rxf6+ {[%clk 0:02:08]}  Kxf6 {[%clk 0:01:05]} 27. Qc3+ {[%clk 0:02:09]}  Kf7 {[%clk 0:01:05]} 28. Qg7# {[%clk 0:02:09]} 1-0


[Site "https://www.chess.com"]

[Event "Titled Tuesday Blitz March 21 Early 2023"]
[White "Martinez Reyes, Pedro Ramon"]
[Black "Zanette, Edgard Vinicius"]
[WhiteFideId "3901807"]
[BlackFideId "2109263"]
[WhiteElo "2340"]
[BlackElo "2211"]
[Result "1-0"]
[Round "01"]
[TimeControl "180+2"]
[Date "2023.03.21"]
[WhiteClock "0:00:57"]
[BlackClock "0:00:52"]

1. d4 {[%clk 0:02:58]}  Nf6 {[%clk 0:02:56]} 2. c4 {[%clk 0:02:58]}  e6 {[%clk 0:02:50]} 3. Nc3 {[%clk 0:02:55]}  Bb4 {[%clk 0:02:48]} 4. Qc2 {[%clk 0:02:55]}  d5 {[%clk 0:02:47]} 5. cxd5 {[%clk 0:02:51]}  exd5 {[%clk 0:02:47]} 6. Bg5 {[%clk 0:02:50]}  c6 {[%clk 0:02:45]} 7. e3 {[%clk 0:02:48]}  O-O {[%clk 0:02:44]} 8. Bd3 {[%clk 0:02:48]}  h6 {[%clk 0:02:44]} 9. Bh4 {[%clk 0:02:42]}  Nbd7 {[%clk 0:02:38]} 10. Ne2 {[%clk 0:02:42]}  Re8 {[%clk 0:02:33]} 11. O-O {[%clk 0:02:41]}  Nf8 {[%clk 0:02:31]} 12. Rad1 {[%clk 0:02:31]}  Be7 {[%clk 0:02:26]} 13. f3 {[%clk 0:02:27]}  Be6 {[%clk 0:02:17]} 14. Nf4 {[%clk 0:02:24]}  Bd6 {[%clk 0:02:13]} 15. Nce2 {[%clk 0:02:13]}  Bd7 {[%clk 0:02:11]} 16. Bf2 {[%clk 0:01:45]}  g5 {[%clk 0:02:08]} 17. Nh3 {[%clk 0:01:45]}  Bxh3 {[%clk 0:02:00]} 18. gxh3 {[%clk 0:01:45]}  Qd7 {[%clk 0:01:56]} 19. Bf5 {[%clk 0:01:45]}  Qc7 {[%clk 0:01:47]} 20. Ng3 {[%clk 0:01:43]}  Ne6 {[%clk 0:01:35]} 21. Kh1 {[%clk 0:01:36]}  Ng7 {[%clk 0:01:34]} 22. Rg1 {[%clk 0:01:32]}  Bxg3 {[%clk 0:01:29]} 23. hxg3 {[%clk 0:01:23]}  Nxf5 {[%clk 0:01:23]} 24. Qxf5 {[%clk 0:01:24]}  Kg7 {[%clk 0:01:11]} 25. g4 {[%clk 0:01:23]}  Qd7 {[%clk 0:01:06]} 26. Qd3 {[%clk 0:01:16]}  Qe6 {[%clk 0:01:03]} 27. Kg2 {[%clk 0:01:16]}  Rac8 {[%clk 0:01:00]} 28. Rh1 {[%clk 0:01:08]}  Rh8 {[%clk 0:00:59]} 29. h4 {[%clk 0:01:08]}  Nd7 {[%clk 0:00:56]} 30. Bg3 {[%clk 0:01:04]}  f6 {[%clk 0:00:53]} 31. h5 {[%clk 0:00:57]}  Rhe8 {[%clk 0:00:52]} 32. Qg6+ {[%clk 0:00:57]} 1-0


[Site "https://www.chess.com"]

[Event "Titled Tuesday Blitz March 21 Early 2023"]
[White "Shukhman, Anna"]
[Black "De Silva, L M S T"]
[WhiteFideId "54180058"]
[BlackFideId "9953698"]
[WhiteElo "2125"]
[BlackElo "2403"]
[Result "0-1"]
[Round "01"]
[TimeControl "180+2"]
[Date "2023.03.21"]
[WhiteClock "0:02:05"]
[BlackClock "0:01:40"]

1. e4 {[%clk 0:02:51]}  e5 {[%clk 0:02:50]} 2. Nf3 {[%clk 0:02:50]}  Nc6 {[%clk 0:02:50]} 3. Bb5 {[%clk 0:02:50]}  a6 {[%clk 0:02:51]} 4. Ba4 {[%clk 0:02:50]}  Nf6 {[%clk 0:02:51]} 5. O-O {[%clk 0:02:49]}  Be7 {[%clk 0:02:51]} 6. Re1 {[%clk 0:02:49]}  b5 {[%clk 0:02:51]} 7. Bb3 {[%clk 0:02:48]}  O-O {[%clk 0:02:52]} 8. a4 {[%clk 0:02:47]}  Bb7 {[%clk 0:02:48]} 9. d4 {[%clk 0:02:47]}  Nxd4 {[%clk 0:02:46]} 10. Nxd4 {[%clk 0:02:42]}  exd4 {[%clk 0:02:46]} 11. e5 {[%clk 0:02:39]}  Ne4 {[%clk 0:02:45]} 12. Qxd4 {[%clk 0:02:34]}  Bc5 {[%clk 0:02:43]} 13. Qd1 {[%clk 0:02:28]}  Bxf2+ {[%clk 0:02:37]} 14. Kh1 {[%clk 0:02:28]}  Qh4 {[%clk 0:02:35]} 15. Rxe4 {[%clk 0:02:27]}  Qxe4 {[%clk 0:02:34]} 16. Qf1 {[%clk 0:02:25]}  Bc5 {[%clk 0:02:27]} 17. Bd2 {[%clk 0:02:25]}  Qxe5 {[%clk 0:02:26]} 18. Nc3 {[%clk 0:02:25]}  b4 {[%clk 0:02:26]} 19. Ne2 {[%clk 0:02:24]}  Rae8 {[%clk 0:02:21]} 20. Nf4 {[%clk 0:02:24]}  Be3 {[%clk 0:02:04]} 21. Nd3 {[%clk 0:02:18]}  Qg5 {[%clk 0:02:00]} 22. Bxb4 {[%clk 0:02:17]}  c5 {[%clk 0:01:57]} 23. Bc3 {[%clk 0:02:16]}  d5 {[%clk 0:01:56]} 24. a5 {[%clk 0:02:09]}  d4 {[%clk 0:01:52]} 25. Be1 {[%clk 0:02:07]}  Bd5 {[%clk 0:01:47]} 26. Ba4 {[%clk 0:02:05]}  Re6 {[%clk 0:01:42]} 27. Bg3 {[%clk 0:02:05]}  Qxg3 {[%clk 0:01:40]} 0-1


[Site "https://www.chess.com"]

[Event "Titled Tuesday Blitz March 21 Early 2023"]
[White "Itgelt, Khuyagtsogt"]
[Black "Biriukov, Ilja"]
[WhiteFideId "4902912"]
[BlackFideId "4113373"]
[WhiteElo "2227"]
[BlackElo "2426"]
[Result "1-0"]
[Round "01"]
[TimeControl "180+2"]
[Date "2023.03.21"]
[WhiteClock "0:00:03"]
[BlackClock "0:00:02"]

1. d4 {[%clk 0:02:59]}  Nf6 {[%clk 0:02:59]} 2. Nf3 {[%clk 0:02:58]}  g6 {[%clk 0:02:59]} 3. c4 {[%clk 0:02:59]}  Bg7 {[%clk 0:02:59]} 4. g3 {[%clk 0:03:00]}  d6 {[%clk 0:03:00]} 5. Bg2 {[%clk 0:03:00]}  O-O {[%clk 0:03:00]} 6. O-O {[%clk 0:03:01]}  Nbd7 {[%clk 0:03:00]} 7. Nc3 {[%clk 0:03:02]}  e5 {[%clk 0:03:00]} 8. Qc2 {[%clk 0:03:02]}  c6 {[%clk 0:02:58]} 9. Rd1 {[%clk 0:03:02]}  Re8 {[%clk 0:02:54]} 10. e4 {[%clk 0:03:02]}  a5 {[%clk 0:02:50]} 11. b3 {[%clk 0:02:52]}  exd4 {[%clk 0:02:41]} 12. Nxd4 {[%clk 0:02:53]}  Nc5 {[%clk 0:02:35]} 13. h3 {[%clk 0:02:46]}  Qc7 {[%clk 0:02:33]} 14. Be3 {[%clk 0:02:44]}  Nfd7 {[%clk 0:02:32]} 15. Rab1 {[%clk 0:02:27]}  Ne5 {[%clk 0:02:15]} 16. f4 {[%clk 0:02:23]}  Ned7 {[%clk 0:02:15]} 17. Bf2 {[%clk 0:02:19]}  Ne6 {[%clk 0:01:52]} 18. Nf3 {[%clk 0:02:08]}  Ndc5 {[%clk 0:01:50]} 19. Re1 {[%clk 0:01:59]}  Bd7 {[%clk 0:01:42]} 20. a3 {[%clk 0:01:55]}  Rad8 {[%clk 0:01:40]} 21. b4 {[%clk 0:01:54]}  axb4 {[%clk 0:01:40]} 22. axb4 {[%clk 0:01:55]}  Na6 {[%clk 0:01:39]} 23. e5 {[%clk 0:01:52]}  Nf8 {[%clk 0:01:25]} 24. Ne4 {[%clk 0:01:13]}  dxe5 {[%clk 0:01:24]} 25. fxe5 {[%clk 0:01:14]}  Be6 {[%clk 0:01:05]} 26. Nd6 {[%clk 0:01:05]}  Re7 {[%clk 0:01:04]} 27. c5 {[%clk 0:01:03]}  Bd5 {[%clk 0:00:53]} 28. Bd4 {[%clk 0:00:42]}  Ne6 {[%clk 0:00:52]} 29. Bc3 {[%clk 0:00:42]}  b6 {[%clk 0:00:42]} 30. Ra1 {[%clk 0:00:39]}  Nb8 {[%clk 0:00:33]} 31. Bd2 {[%clk 0:00:32]}  bxc5 {[%clk 0:00:28]} 32. bxc5 {[%clk 0:00:32]}  Nd7 {[%clk 0:00:26]} 33. Ba5 {[%clk 0:00:30]}  Qb8 {[%clk 0:00:20]} 34. Reb1 {[%clk 0:00:30]}  Qa8 {[%clk 0:00:19]} 35. Bxd8 {[%clk 0:00:16]}  Qxd8 {[%clk 0:00:19]} 36. Re1 {[%clk 0:00:06]}  Ndxc5 {[%clk 0:00:19]} 37. Rad1 {[%clk 0:00:02]}  Rd7 {[%clk 0:00:18]} 38. Nc4 {[%clk 0:00:02]}  Bxc4 {[%clk 0:00:16]} 39. Rxd7 {[%clk 0:00:03]}  Qxd7 {[%clk 0:00:14]} 40. Qxc4 {[%clk 0:00:04]}  Bf8 {[%clk 0:00:07]} 41. Rc1 {[%clk 0:00:03]}  Kg7 {[%clk 0:00:07]} 42. Kh2 {[%clk 0:00:04]}  Qb7 {[%clk 0:00:06]} 43. Nd4 {[%clk 0:00:04]}  Nxd4 {[%clk 0:00:05]} 44. Qxd4 {[%clk 0:00:05]}  Ne6 {[%clk 0:00:05]} 45. Qc3 {[%clk 0:00:04]}  Qb5 {[%clk 0:00:02]} 46. Bxc6 {[%clk 0:00:03]} 1-0


[Site "https://www.chess.com"]

[Event "Titled Tuesday Blitz March 21 Early 2023"]
[White "Abrosimov, Vladimir"]
[Black "Zamorano, Jorge"]
[WhiteFideId "4166892"]
[BlackFideId "173770"]
[WhiteElo "2336"]
[BlackElo "2331"]
[Result "0-1"]
[Round "01"]
[TimeControl "180+2"]
[Date "2023.03.21"]
[WhiteClock "0:00:03"]
[BlackClock "0:00:58"]

1. c4 {[%clk 0:02:55]}  e5 {[%clk 0:02:56]} 2. Nc3 {[%clk 0:02:55]}  Nf6 {[%clk 0:02:57]} 3. g3 {[%clk 0:02:56]}  c6 {[%clk 0:02:57]} 4. e4 {[%clk 0:02:56]}  d5 {[%clk 0:02:56]} 5. cxd5 {[%clk 0:02:56]}  cxd5 {[%clk 0:02:57]} 6. exd5 {[%clk 0:02:54]}  Nxd5 {[%clk 0:02:57]} 7. Bg2 {[%clk 0:02:54]}  Nb4 {[%clk 0:02:57]} 8. Qa4+ {[%clk 0:02:44]}  Bd7 {[%clk 0:02:49]} 9. Qd1 {[%clk 0:02:41]}  Bc6 {[%clk 0:02:49]} 10. Bxc6+ {[%clk 0:02:30]}  N8xc6 {[%clk 0:02:49]} 11. Nge2 {[%clk 0:02:23]}  Nd3+ {[%clk 0:02:41]} 12. Kf1 {[%clk 0:02:22]}  Bc5 {[%clk 0:02:27]} 13. Ne4 {[%clk 0:02:17]}  Bb6 {[%clk 0:02:02]} 14. N2c3 {[%clk 0:01:58]}  f5 {[%clk 0:01:49]} 15. Qf3 {[%clk 0:01:15]}  fxe4 {[%clk 0:01:45]} 16. Nxe4 {[%clk 0:01:16]}  Nxf2 {[%clk 0:01:30]} 17. Nxf2 {[%clk 0:01:12]}  Rf8 {[%clk 0:01:29]} 18. Qh5+ {[%clk 0:01:04]}  g6 {[%clk 0:01:29]} 19. Qxh7 {[%clk 0:01:01]}  Rxf2+ {[%clk 0:01:05]} 20. Ke1 {[%clk 0:01:01]}  Qd3 {[%clk 0:01:05]} 21. Qg8+ {[%clk 0:00:36]}  Kd7 {[%clk 0:01:05]} 22. Qg7+ {[%clk 0:00:34]}  Ke6 {[%clk 0:01:04]} 23. Kd1 {[%clk 0:00:25]}  Nd4 {[%clk 0:01:00]} 24. Re1 {[%clk 0:00:03]}  Qc2# {[%clk 0:00:58]} 0-1


[Site "https://www.chess.com"]